fUSD/lending_fUSD_20251118
["ID","MTS","AMOUNT","RATE_DAILY","PERIOD"]
[394329189,1763457053120,-151.0,0.00024658,7]
[394329190,1763457053129,-168.264114,0.00024658,7]
[394329191,1763457053139,-594.220357,0.00024658,7]
[394329192,1763457053148,-594.220357,0.00024658,7]
[394329193,1763457053157,-594.220357,0.00024658,7]
[394329194,1763457053167,-151.0,0.00024658,7]
[394329195,1763457053176,-594.220357,0.00024658,7]
[394329196,1763457053185,-151.0,0.00024658,7]
[394329197,1763457053195,-594.220357,0.00024658,7]
[394329198,1763457053204,-151.0,0.00024658,7]
[394329199,1763457053213,-151.0,0.00024658,7]
[394329200,1763457053222,-594.220357,0.00024658,7]
[394329201,1763457053231,-151.0,0.00024658,7]
[394329202,1763457053240,-594.220357,0.00024658,7]
[394329203,1763457053250,-261.523496,0.00024658,7]
[394329204,1763457053259,-594.220357,0.00024658,7]
[394329205,1763457053269,-594.220357,0.00024658,7]
[394329206,1763457053279,-151.0,0.00024658,7]
[394329207,1763457053288,-151.0,0.00024658,7]
[394329208,1763457053297,-594.220357,0.00024658,7]
[394329209,1763457053306,-151.0,0.00024658,7]
[394329210,1763457053315,-594.220357,0.00024658,7]
[394329211,1763457053324,-151.0,0.00024658,7]
[394329212,1763457053334,-594.220357,0.00024658,7]
[394329213,1763457053343,-594.220357,0.00024658,7]
[394329214,1763457053353,-151.0,0.00024658,7]
[394329215,1763457053362,-200.836806,0.00024658,7]
[394329216,1763457053373,-163.657692,0.00024658,7]
[394329217,1763457053382,-151.0,0.00024658,7]
[394329218,1763457053392,-154.915023,0.00024658,7]
[394329219,1763457053401,-151.0,0.00024658,7]
[394329220,1763457053411,-151.0,0.00024658,7]
[394329221,1763457053420,-151.0,0.00024658,7]
[394329222,1763457053431,-151.0,0.00024658,7]
[394329223,1763457053441,-151.0,0.00024658,7]
[394329224,1763457053451,-151.0,0.00024658,7]
[394329225,1763457053460,-151.0,0.00024658,7]
[394329226,1763457053470,-151.0,0.00024658,7]
[394329227,1763457053479,-151.0,0.00024658,7]
[394329228,1763457053490,-151.0,0.00024658,7]
[394329229,1763457053499,-151.0,0.00024658,7]
[394329230,1763457053509,-151.0,0.00024658,7]
[394329231,1763457053518,-151.0,0.00024658,7]
[394329232,1763457053528,-151.0,0.00024658,7]
[394329233,1763457053537,-151.0,0.00024658,7]
[394329234,1763457053547,-154.07698,0.00024658,7]
[394329235,1763457053557,-236.285315,0.00024658,7]
[394329236,1763457053567,-236.285315,0.00024658,7]
[394329237,1763457053577,-236.285315,0.00024658,7]
[394329238,1763457053586,-236.285315,0.00024658,7]
[394329239,1763457053595,-236.285315,0.00024658,7]
[394329240,1763457053605,-236.285315,0.00024658,7]
[394329241,1763457053614,-236.285315,0.00024658,7]
[394329242,1763457053624,-236.285315,0.00024658,7]
[394329243,1763457053633,-151.0,0.00024658,7]
[394329244,1763457053643,-236.285315,0.00024658,7]
[394329245,1763457053652,-151.0,0.00024658,7]
[394329246,1763457053662,-236.285315,0.00024658,7]
[394329247,1763457053671,-155.902695,0.00024658,7]
[394329248,1763457053680,-236.285315,0.00024658,7]
[394329249,1763457053689,-236.285315,0.00024658,7]
[394329250,1763457053699,-236.285315,0.00024658,7]
[394329251,1763457053708,-236.285315,0.00024658,7]
[394329252,1763457053717,-236.285315,0.00024658,7]
[394329253,1763457053727,-236.285315,0.00024658,7]
[394329254,1763457053737,-151.0,0.00024658,7]
[394329255,1763457053746,-151.0,0.00024658,7]
[394329256,1763457053756,-151.0,0.00024658,7]
[394329257,1763457053765,-151.0,0.00024658,7]
[394329258,1763457053775,-151.0,0.00024658,7]
[394329259,1763457053784,-151.0,0.00024658,7]
[394329260,1763457053794,-151.0,0.00024658,7]
[394329261,1763457053804,-151.0,0.00024658,7]
[394329262,1763457053813,-151.0,0.00024658,7]
[394329263,1763457053823,-162.154812,0.00024658,7]
[394329264,1763457053833,-158.29204,0.00024658,7]
[394329265,1763457053845,-151.0,0.00024658,7]
[394329266,1763457053855,-210.525158,0.00024658,7]
[394329267,1763457053865,-151.0,0.00024658,7]
[394329268,1763457053875,-151.0,0.00024658,7]
[394329269,1763457053885,-151.0,0.00024658,7]
[394329270,1763457053895,-151.0,0.00024658,7]
[394329271,1763457053904,-151.0,0.00024658,7]
[394329272,1763457053914,-151.0,0.00024658,7]
[394329273,1763457053926,-151.0,0.00024658,7]
[394329274,1763457053936,-151.0,0.00024658,7]
[394329275,1763457053946,-151.0,0.00024658,7]
[394329276,1763457053956,-151.0,0.00024658,7]
[394329277,1763457053966,-151.0,0.00024658,7]
[394329278,1763457053976,-187.304561,0.00024658,7]
[394329279,1763457053986,-151.0,0.00024658,7]
[394329280,1763457053996,-151.0,0.00024658,7]
[394329281,1763457054006,-151.0,0.00024658,7]
[394329282,1763457054016,-151.0,0.00024658,7]
[394329283,1763457054026,-151.0,0.00024658,7]
[394329284,1763457054036,-151.0,0.00024658,7]
[394329285,1763457054045,-151.0,0.00024658,7]
[394329286,1763457054055,-151.0,0.00024658,7]
[394329287,1763457054065,-151.0,0.00024658,7]
[394329288,1763457054075,-151.0,0.00024658,7]
[394329289,1763457054084,-151.0,0.00024658,7]
[394329290,1763457054094,-227.822968,0.00024658,7]
[394329291,1763457054104,-151.0,0.00024658,7]
[394329292,1763457054114,-151.0,0.00024658,7]
[394329293,1763457054124,-151.0,0.00024658,7]
[394329294,1763457054133,-287.767349,0.00024658,7]
[394329295,1763457054143,-151.0,0.00024658,7]
[394329296,1763457054153,-151.0,0.00024658,7]
[394329297,1763457054162,-151.0,0.00024658,7]
[394329298,1763457054172,-151.0,0.00024658,7]
[394329299,1763457054182,-151.0,0.00024658,7]
[394329300,1763457054191,-151.0,0.00024658,7]
[394329301,1763457054202,-151.0,0.00024658,7]
[394329302,1763457054211,-151.0,0.00024658,7]
[394329303,1763457054221,-151.0,0.00024658,7]
[394329304,1763457054232,-151.0,0.00024658,7]
[394329305,1763457054242,-155.419484,0.00024658,7]
[394329306,1763457054251,-151.0,0.00024658,7]
[394329307,1763457054261,-197.154964,0.00024658,7]
[394329308,1763457054271,-151.0,0.00024658,7]
[394329309,1763457054281,-151.0,0.00024658,7]
[394329310,1763457054290,-151.0,0.00024658,7]
[394329311,1763457054301,-151.0,0.00024658,7]
[394329312,1763457054310,-177.808315,0.00024658,7]
[394329313,1763457054319,-175.327561,0.00024658,7]
[394329314,1763457054329,-151.0,0.00024658,7]
[394329315,1763457054339,-151.0,0.00024658,7]
[394329316,1763457054349,-151.0,0.00024658,7]
[394329317,1763457054358,-151.0,0.00024658,7]
[394329318,1763457054367,-151.0,0.00024658,7]
[394329319,1763457054376,-151.0,0.00024658,7]
[394329320,1763457054386,-151.0,0.00024658,7]
[394329321,1763457054395,-151.0,0.00024658,7]
[394329322,1763457054404,-266.029318,0.00024658,7]
[394329323,1763457054413,-151.0,0.00024658,7]
[394329324,1763457054423,-151.0,0.00024658,7]
[394329325,1763457054433,-151.0,0.00024658,7]
[394329326,1763457054442,-178.428077,0.00024658,7]
[394329327,1763457054451,-200.227909,0.00024658,7]
[394329328,1763457054460,-200.227909,0.00024658,7]
[394329329,1763457054470,-200.227909,0.00024658,7]
[394329330,1763457054479,-165.88479,0.00024658,7]
[394329331,1763457054488,-200.227917,0.00024658,7]
[394329332,1763457054498,-151.0,0.00024658,7]
[394329333,1763457054507,-191.706354,0.00024658,7]
[394329334,1763457054516,-151.0,0.00024658,7]
[394329335,1763457054526,-151.0,0.00024658,7]
[394329336,1763457054535,-151.0,0.00024658,7]
[394329337,1763457054546,-1034.891128,0.00024658,7]
[394329338,1763457054555,-1034.891128,0.00024658,7]
[394329339,1763457054564,-1034.891128,0.00024658,7]
[394329340,1763457054574,-1034.891118,0.00024658,7]
[394329341,1763457054583,-151.0,0.00024658,7]
[394329342,1763457054592,-151.0,0.00024658,7]
[394329343,1763457054601,-151.0,0.00024658,7]
[394329344,1763457054610,-151.0,0.00024658,7]
[394329345,1763457054619,-151.0,0.00024658,7]
[394329346,1763457054628,-151.0,0.00024658,7]
[394329347,1763457054637,-188.70561,0.00024658,7]
[394329348,1763457054646,-151.0,0.00024658,7]
[394329349,1763457054655,-188.70561,0.00024658,7]
[394329350,1763457054664,-151.0,0.00024658,7]
[394329351,1763457054673,-188.70561,0.00024658,7]
[394329352,1763457054682,-151.0,0.00024658,7]
[394329353,1763457054691,-188.705606,0.00024658,7]
[394329354,1763457054700,-168.061494,0.00024658,7]
[394329355,1763457054708,-151.0,0.00024658,7]
[394329356,1763457054717,-168.061494,0.00024658,7]
[394329357,1763457054726,-168.061494,0.00024658,7]
[394329358,1763457054735,-168.061504,0.00024658,7]
[394329359,1763457054744,-151.0,0.00024658,7]
[394329360,1763457054753,-151.0,0.00024658,7]
[394329361,1763457054763,-151.0,0.00024658,7]
[394329362,1763457054772,-151.0,0.00024658,7]
[394329363,1763457054781,-151.0,0.00024658,7]
[394329364,1763457054791,-169.170275,0.00024658,7]
[394329365,1763457054800,-151.0,0.00024658,7]
[394329366,1763457054810,-208.05667,0.00024658,7]
[394329367,1763457054820,-170.210898,0.00024658,7]
[394329368,1763457054831,-208.05667,0.00024658,7]
[394329369,1763457054841,-208.05667,0.00024658,7]
[394329370,1763457054855,-208.056674,0.00024658,7]
[394329371,1763457054865,-206.880074,0.00024658,7]
[394329372,1763457054874,-151.0,0.00024658,7]
[394329373,1763457054884,-199.866648,0.00024658,7]
[394329374,1763457054893,-199.866648,0.00024658,7]
[394329375,1763457054903,-151.0,0.00024658,7]
[394329376,1763457054912,-199.866648,0.00024658,7]
[394329377,1763457054923,-151.0,0.00024658,7]
[394329378,1763457054932,-667.718292,0.00024658,7]
[394329379,1763457054943,-199.866655,0.00024658,7]
[394329380,1763457054952,-151.0,0.00024658,7]
[394329381,1763457054963,-151.0,0.00024658,7]
[394329382,1763457054974,-667.718292,0.00024658,7]
[394329383,1763457054985,-151.0,0.00024658,7]
[394329384,1763457054995,-667.718292,0.00024658,7]
[394329385,1763457055004,-667.71829693,0.00024658,7]
[394329386,1763457055014,-328.264286,0.00024658,7]
[394329387,1763457055024,-328.264286,0.00024658,7]
[394329388,1763457055033,-328.264286,0.00024658,7]
[394329389,1763457055044,-328.264278,0.00024658,7]
[394329390,1763457055053,-151.0,0.00024658,7]
[394329391,1763457055062,-603.271922,0.00024658,7]
[394329392,1763457055072,-603.271922,0.00024658,7]
[394329393,1763457055082,-603.271922,0.00024658,7]
[394329394,1763457055093,-603.271912,0.00024658,7]
[394329395,1763457055102,-214.576605,0.00024658,7]
[394329396,1763457055111,-151.0,0.00024658,7]
[394329397,1763457055120,-194.038784,0.00024658,7]
[394329398,1763457055129,-214.576605,0.00024658,7]
[394329399,1763457055138,-151.0,0.00024658,7]
[394329400,1763457055270,-194.038784,0.00024658,7]
[394329401,1763457055280,-214.576605,0.00024658,7]
[394329402,1763457055289,-151.0,0.00024658,7]
[394329403,1763457055298,-194.038784,0.00024658,7]
[394329404,1763457055307,-214.576611,0.00024658,7]
[394329405,1763457055316,-194.038781,0.00024658,7]
[394329406,1763457055325,-151.0,0.00024658,7]
[394329407,1763457055334,-151.0,0.00024658,7]
[394329408,1763457055343,-151.0,0.00024658,7]
[394329409,1763457055353,-151.0,0.00024658,7]
[394329410,1763457055362,-190.785166,0.00024658,7]
[394329411,1763457055371,-151.0,0.00024658,7]
[394329412,1763457055379,-151.0,0.00024658,7]
[394329413,1763457055388,-190.785166,0.00024658,7]
[394329414,1763457055398,-228.185628,0.00024658,7]
[394329415,1763457055407,-190.785166,0.00024658,7]
[394329416,1763457055416,-212.498357,0.00024658,7]
[394329417,1763457055424,-212.498357,0.00024658,7]
[394329418,1763457055434,-190.785173,0.00024658,7]
[394329419,1763457055442,-212.498357,0.00024658,7]
[394329420,1763457055452,-212.498365,0.00024658,7]
[394329421,1763457055462,-151.0,0.00024658,7]
[394329422,1763457055471,-151.0,0.00024658,7]
[394329423,1763457055480,-151.0,0.00024658,7]
[394329424,1763457055490,-151.0,0.00024658,7]
[394329425,1763457055500,-151.0,0.00024658,7]
[394329426,1763457055511,-151.0,0.00024658,7]
[394329427,1763457055521,-151.0,0.00024658,7]
[394329428,1763457055531,-151.0,0.00024658,7]
[394329429,1763457055540,-151.0,0.00024658,7]
[394329430,1763457055549,-171.934768,0.00024658,7]
[394329431,1763457055559,-171.934768,0.00024658,7]
[394329432,1763457055568,-171.934768,0.00024658,7]
[394329433,1763457055577,-171.934768,0.00024658,7]
[394329434,1763457055586,-738.782703,0.00024658,7]
[394329435,1763457055596,-151.0,0.00024658,7]
[394329436,1763457055605,-738.782703,0.00024658,7]
[394329437,1763457055614,-151.0,0.00024658,7]
[394329438,1763457055623,-738.782703,0.00024658,7]
[394329439,1763457055632,-151.0,0.00024658,7]
[394329440,1763457055641,-151.0,0.00024658,7]
[394329441,1763457055651,-738.782707,0.00024658,7]
[394329442,1763457055660,-151.0,0.00024658,7]
[394329443,1763457055669,-151.0,0.00024658,7]
[394329444,1763457055679,-151.0,0.00024658,7]
[394329445,1763457055687,-594.220357,0.00024658,7]
[394329446,1763457055697,-594.220357,0.00024658,7]
[394329447,1763457055706,-151.0,0.00024658,7]
[394329448,1763457055716,-594.220357,0.00024658,7]
[394329449,1763457055725,-151.0,0.00024658,7]
[394329450,1763457055735,-594.220352,0.00024658,7]
[394329451,1763457055744,-151.0,0.00024658,7]
[394329452,1763457055753,-152.585105,0.00024658,7]
[394329453,1763457055763,-285.69320133,0.00024658,7]
[394329454,1763457055773,-542.638418,0.00024658,7]
[394329455,1763457055782,-236.285315,0.00024658,7]
[394329456,1763457055791,-542.638418,0.00024658,7]
[394329457,1763457055801,-236.285315,0.00024658,7]
[394329458,1763457055810,-542.638418,0.00024658,7]
[394329459,1763457055819,-236.285315,0.00024658,7]
[394329460,1763457055828,-542.638412,0.00024658,7]
[394329461,1763457055838,-236.285323,0.00024658,7]
[394329462,1763457055851,-151.0,0.00024658,7]
[394329463,1763457055860,-151.0,0.00024658,7]
[394329464,1763457055870,-202.076874,0.00024658,7]
[394329465,1763457055880,-151.0,0.00024658,7]
[394329466,1763457055891,-198.543062,0.00024658,7]
[394329467,1763457055900,-151.0,0.00024658,7]
[394329468,1763457055909,-151.0,0.00024658,7]
[394329469,1763457055921,-198.543062,0.00024658,7]
[394329470,1763457055931,-198.543062,0.00024658,7]
[394329471,1763457055940,-151.0,0.00024658,7]
[394329472,1763457055951,-198.543064,0.00024658,7]
[394329473,1763457055960,-151.0,0.00024658,7]
[394329474,1763457055970,-150.0,0.00024682,2]
[394329475,1763457055979,-575.0,0.00024682,2]
[394329476,1763457055989,-609.0,0.00024682,2]
[394329477,1763457055999,-297.83872806,0.000247,7]
[394329478,1763457056008,-300.0,0.00024799,10]
[394329479,1763457056017,-3027.7960274,0.000248,2]
[394329480,1763457056027,-412470.03038,0.000248,3]
[394329481,1763457056036,-153.0,0.00024862,2]
[394329482,1763457056046,-153.0,0.00024862,2]
[394329483,1763457056055,-153.0,0.00024862,2]
[394329484,1763457056064,-153.0,0.00024862,2]
[394329485,1763457056074,-202.0,0.00024866,2]
[394329486,1763457056083,-202.0,0.00024866,2]
[394329487,1763457056092,-202.0,0.00024866,2]
[394329488,1763457056101,-202.0,0.00024866,2]
[394329489,1763457056110,-202.0,0.00024866,2]
[394329490,1763457056119,-202.0,0.00024866,2]
[394329491,1763457056127,-202.0,0.00024866,2]
[394329492,1763457056137,-153.0,0.00024898,2]
[394329493,1763457056145,-153.0,0.00024898,2]
[394329494,1763457056155,-153.0,0.00024898,2]
[394329495,1763457056165,-153.0,0.00024898,2]
[394329496,1763457056175,-248.80901275,0.00024899,10]
[394329497,1763457056187,-131329.647948,0.000249,3]
[394329498,1763457056198,-203.0,0.00024902,2]
[394329499,1763457056208,-203.0,0.00024902,2]
[394329500,1763457056218,-203.0,0.00024902,2]
[394329501,1763457056227,-203.0,0.00024902,2]
[394329502,1763457056237,-203.0,0.00024902,2]
[394329503,1763457056247,-203.0,0.00024902,2]
[394329504,1763457056257,-203.0,0.00024902,2]
[394329505,1763457056267,-162.90909298,0.0002493,2]
[394329506,1763457056276,-153.0,0.00024942,2]
[394329507,1763457056286,-153.0,0.00024942,2]
[394329508,1763457056297,-153.0,0.00024942,2]
[394329509,1763457056306,-153.0,0.00024942,2]
[394329510,1763457056315,-153.0,0.00024942,2]
[394329511,1763457056324,-153.0,0.00024942,2]
[394329512,1763457056334,-153.0,0.00024942,2]
[394329513,1763457056343,-205.0,0.00024946,2]
[394329514,1763457056352,-205.0,0.00024946,2]
[394329515,1763457056361,-205.0,0.00024946,2]
[394329516,1763457056370,-205.0,0.00024946,2]
[394329517,1763457056380,-205.0,0.00024946,2]
[394329518,1763457056390,-205.0,0.00024946,2]
[394329519,1763457056401,-205.0,0.00024946,2]
[394329520,1763457056411,-184.7048546,0.00024972,2]
[394329521,1763457056420,-204.0,0.00024983,2]
[394329522,1763457056429,-204.0,0.00024983,2]
[394329523,1763457056439,-204.0,0.00024983,2]
[394329524,1763457056449,-204.0,0.00024983,2]
[394329525,1763457056459,-204.0,0.00024983,2]
[394329526,1763457056469,-204.0,0.00024983,2]
[394329527,1763457056478,-204.0,0.00024983,2]
[394329528,1763457056487,-10946.59,0.00025,7]
[394329529,1763457056497,-450.0,0.00025,2]
[394329530,1763457056506,-153.0,0.00025042,2]
[394329531,1763457056518,-153.0,0.00025042,2]
[394329532,1763457056527,-153.0,0.00025042,2]
[394329533,1763457056535,-153.0,0.00025042,2]
[394329534,1763457056545,-202.0,0.00025046,2]
[394329535,1763457056554,-202.0,0.00025046,2]
[394329536,1763457056563,-202.0,0.00025046,2]
[394329537,1763457056572,-202.0,0.00025046,2]
[394329538,1763457056581,-202.0,0.00025046,2]
[394329539,1763457056590,-202.0,0.00025046,2]
[394329540,1763457056600,-202.0,0.00025046,2]
[394329541,1763457056610,-153.0,0.00025078,2]
[394329542,1763457056620,-153.0,0.00025078,2]
[394329543,1763457056630,-153.0,0.00025078,2]
[394329544,1763457056639,-201.0,0.00025083,2]
[394329545,1763457056648,-201.0,0.00025083,2]
[394329546,1763457056658,-201.0,0.00025083,2]
[394329547,1763457056667,-201.0,0.00025083,2]
[394329548,1763457056676,-1318.0,0.00025089,2]
[394329549,1763457056686,-438.49567533,0.00025129,2]
[394329550,1763457056695,-821.0,0.00025172,2]
[394329551,1763457056706,-1599.0,0.00025172,2]
[394329552,1763457056715,-907.0,0.00025177,2]
[394329553,1763457056724,-1191.0,0.00025177,2]
[394329554,1763457056734,-1604.0,0.00025177,2]
[394329555,1763457056744,-561.0,0.00025177,2]
[394329556,1763457056753,-479.30025826,0.000255,3]
[394329557,1763457056764,-1613.0,0.00025623,2]
[394329558,1763457056774,-1490.0,0.00025623,2]
[394329559,1763457056783,-1428.69,0.00026014,2]
[394329560,1763457056793,-700.6,0.00026014,2]
[394329561,1763457056805,-700.6,0.00026014,2]
[394329562,1763457056815,-700.6,0.00026014,2]
[394329563,1763457056825,-700.6,0.00026014,2]
[394329564,1763457056834,-700.6,0.00026014,2]
[394329565,1763457056844,-700.6,0.00026014,2]
[394329566,1763457056855,-700.6,0.00026014,2]
[394329567,1763457056865,-478.46,0.00026014,2]
[394329568,1763457056875,-478.46,0.00026014,2]
[394329569,1763457056886,-478.46,0.00026014,2]
[394329570,1763457056895,-956.62,0.00026014,2]
[394329571,1763457056905,-478.46,0.00026014,2]
[394329572,1763457056916,-478.46,0.00026014,2]
[394329573,1763457056926,-478.46,0.00026014,2]
[394329574,1763457056935,-478.46,0.0002604,2]
[394329575,1763457056946,-478.46,0.0002604,2]
[394329576,1763457056955,-478.46,0.0002604,2]
[394329577,1763457056964,-51.88368094,0.0002604,2]
[394329578,1763457057290,-1.6e-07,0.00024658,7]
[394329579,1763457057487,-150.99999984,0.00024658,7]
[394329580,1763457057497,-151.0,0.00024658,7]
[394329581,1763457057507,-1345.905098,0.00024658,7]
[394329582,1763457057517,-1345.905098,0.00024658,7]
[394329583,1763457057526,-151.0,0.00024658,7]
[394329584,1763457057535,-151.0,0.00024658,7]
[394329585,1763457057543,-151.0,0.00024658,7]
[394329586,1763457057553,-151.0,0.00024658,7]
[394329587,1763457057563,-151.0,0.00024658,7]
[394329588,1763457057573,-1345.905098,0.00024658,7]
[394329589,1763457057584,-151.0,0.00024658,7]
[394329590,1763457057594,-151.0,0.00024658,7]
[394329591,1763457057603,-1345.905098,0.00024658,7]
[394329592,1763457057613,-151.0,0.00024658,7]
[394329593,1763457057622,-1345.905098,0.00024658,7]
[394329594,1763457057632,-151.0,0.00024658,7]
[394329595,1763457057641,-1345.905098,0.00024658,7]
[394329596,1763457057651,-151.0,0.00024658,7]
[394329597,1763457057661,-151.0,0.00024658,7]
[394329598,1763457057670,-151.0,0.00024658,7]
[394329599,1763457057679,-1345.905098,0.00024658,7]
[394329600,1763457057688,-151.0,0.00024658,7]
[394329601,1763457057698,-426.57631906,0.0002604,2]
[394329602,1763457057708,-478.46,0.0002604,2]
[394329603,1763457057718,-478.46,0.0002604,2]
[394329604,1763457057727,-478.46,0.0002604,2]
[394329605,1763457057736,-478.46,0.0002604,2]
[394329606,1763457057746,-6453.0,0.0002627,2]
[394329607,1763457057755,-700.06,0.00026329,2]
[394329608,1763457057764,-956.32,0.0002663,2]
[394329609,1763457057774,-843.4,0.00026676,2]
[394329610,1763457057784,-196.67398587,0.0002675,2]
[394329611,1763457057794,-216.63,0.00026929,7]
[394329612,1763457057804,-478.46,0.00026973,2]
[394329613,1763457057814,-478.46,0.00026973,2]
[394329614,1763457057823,-478.46,0.00026973,2]
[394329615,1763457057832,-478.46,0.00026973,2]
[394329616,1763457057843,-203.06,0.00026973,2]
[394329617,1763457057855,-500.0,0.00027,2]
[394329618,1763457057864,-163.0,0.00027,7]
[394329619,1763457057874,-939.79,0.00027315,2]
[394329620,1763457057884,-151.53320447,0.00027369,2]
[394329621,1763457057893,-500.0,0.00027397,2]
[394329622,1763457057902,-207.57,0.00027397,2]
[394329623,1763457057911,-159.81,0.000274,7]
[394329624,1763457057923,-2576.85,0.000274,2]
[394329625,1763457057933,-10946.59,0.000276,7]
[394329626,1763457057942,-6110.64,0.00027671,2]
[394329627,1763457057952,-575.0,0.00027682,2]
[394329628,1763457057961,-609.0,0.00027682,2]
[394329629,1763457057971,-700.23,0.00027939,2]
[394329630,1763457057981,-2258.0,0.00028002,2]
[394329631,1763457057990,-1318.0,0.00028089,2]
[394329632,1763457058001,-2000.0,0.000281,2]
[394329633,1763457058011,-821.0,0.00028172,2]
[394329634,1763457058026,-1599.0,0.00028172,2]
[394329635,1763457058035,-1604.0,0.00028177,2]
[394329636,1763457058044,-555.935,0.00028177,2]
[394329637,1763457058054,-211.94675196,0.00028421,2]
[394329638,1763457058064,-150.42,0.00028617,2]
[394329639,1763457058074,-150.0,0.00028617,2]
[394329640,1763457058083,-300.7,0.00028643,2]
[394329641,1763457058093,-301.36,0.00028643,2]
[394329642,1763457058228,-302.33,0.00028643,2]
[394329643,1763457058238,-342.16,0.00028643,2]
[394329644,1763457058250,-150.0,0.00028643,2]
[394329645,1763457058261,-172.22,0.00028643,2]
[394329646,1763457058271,-150.0,0.00028643,2]
[394329647,1763457058281,-163.0,0.00028767,14]
[394329648,1763457058291,-5305.0,0.00028852,2]
[394329649,1763457058300,-162.90909298,0.00029085,2]
[394329650,1763457058310,-438.49567533,0.00029243,2]
[394329651,1763457058319,-605.18,0.00029272,30]
[394329652,1763457058328,-216.63,0.00029394,30]
[394329653,1763457058338,-150.21,0.00029438,2]
[394329654,1763457058349,-150.0,0.00029438,2]
[394329655,1763457058360,-300.58,0.00029438,2]
[394329656,1763457058370,-150.0,0.00029438,2]
[394329657,1763457058380,-150.0,0.00029438,2]
[394329658,1763457058389,-150.0,0.00029438,2]
[394329659,1763457058398,-150.0,0.00029438,2]
[394329660,1763457058407,-150.0,0.00029438,2]
[394329661,1763457058416,-1209.53,0.00029438,2]
[394329662,1763457058425,-150.0,0.00029438,2]
[394329663,1763457058435,-1209.53,0.00029438,2]
[394329664,1763457058444,-150.0,0.00029438,2]
[394329665,1763457058454,-150.0,0.00029438,2]
[394329666,1763457058464,-150.0,0.00029438,2]
[394329667,1763457058474,-150.0,0.00029438,2]
[394329668,1763457058483,-150.0,0.00029438,2]
[394329669,1763457058492,-150.0,0.00029438,2]
[394329670,1763457058501,-300.0,0.00029438,2]
[394329671,1763457058511,-2419.06,0.00029438,2]
[394329672,1763457058521,-150.0,0.00029438,2]
[394329673,1763457058530,-150.0,0.00029438,2]
[394329674,1763457058541,-150.0,0.00029438,2]
[394329675,1763457058552,-150.0,0.00029438,2]
[394329676,1763457058561,-150.0,0.00029438,2]
[394329677,1763457058569,-150.0,0.00029438,2]
[394329678,1763457058578,-150.0,0.00029438,2]
[394329679,1763457058587,-150.0,0.00029438,2]
[394329680,1763457058597,-150.0,0.00029438,2]
[394329681,1763457058606,-300.0,0.00029438,2]
[394329682,1763457058615,-150.0,0.00029438,2]
[394329683,1763457058624,-150.0,0.00029438,2]
[394329684,1763457058633,-416.87,0.00029438,2]
[394329685,1763457058644,-416.87,0.00029438,2]
[394329686,1763457058653,-416.87,0.00029438,2]
[394329687,1763457058663,-416.87,0.00029438,2]
[394329688,1763457058673,-416.87,0.00029438,2]